bitfinex/quotes_SOLUSD_20250204
["timestamp","ask_amount","ask_price","bid_price","bid_amount"]
[1738656891266,1.0,205.39,205.37,37.0098653]
[1738656891580,1.0,205.41,205.38,37.0098653]
[1738656891789,1.0,205.41,205.4,37.0098653]
[1738656892694,2.0,205.46,205.4,46.1671769]
[1738656892866,1.0,205.44,205.4,23.44860062]
[1738656893587,10.7266,205.5,205.44,13.66282853]
[1738656893588,1.0,205.49,205.44,13.66282853]
[1738656893794,1.0,205.5,205.48,22.71857628]
[1738656894012,1.0,205.5,205.44,0.25098]
[1738656894013,1.0,205.5,205.49,23.44831695]
[1738656894699,2.0,205.5,205.49,23.44831695]
[1738656894901,1.0,205.5,205.49,23.44831695]
[1738656895301,2.0,205.5,205.49,23.44831695]
[1738656895624,0.03,205.55,205.49,51.03330285]
[1738656895794,1.0,205.54,205.5,22.71857628]
[1738656896087,1.0,205.54,205.49,0.72958859]
[1738656896088,2.0,205.54,205.49,0.72958859]
[1738656896293,1.0,205.51,205.47,4.8666]
[1738656896493,1.0,205.52,205.45,43.41184853]
[1738656896494,1.0,205.49,205.45,20.0]
[1738656896923,1.0,205.49,205.44,4.8674]
[1738656897122,1.0,205.49,205.44,17.0364]
[1738656897350,0.03,205.55,205.5,0.25098]
[1738656897626,0.03,205.55,205.54,22.71857628]
[1738656900524,1.03,205.55,205.52,22.71857628]
[1738656900819,1.0,205.49,205.46,22.71857628]
[1738656901030,1.0,205.46,205.41,4.868]
[1738656901239,1.0,205.5,205.42,0.72996752]
[1738656901410,1.0,205.5,205.49,22.71857628]
[1738656901606,2.03,205.55,205.49,22.71857628]
[1738656901839,2.03,205.55,205.53,22.71857628]
[1738656902136,2.03,205.55,205.52,22.71857628]
[1738656902440,1.0,205.53,205.52,22.71857628]
[1738656902607,2.0,205.53,205.5,22.71857628]
[1738656903010,1.0,205.5,205.48,22.71857628]
[1738656904020,1.0,205.5,205.49,22.71857628]
[1738656906438,2.0,205.54,205.49,23.44837497]
[1738656906639,0.03,205.55,205.53,22.71857628]
[1738656906810,0.03,205.55,205.54,23.44804941]
[1738656907009,1.0,205.52,205.46,12.1673]
[1738656907211,1.0,205.51,205.47,5.59648986]
[1738656907441,1.0,205.51,205.5,22.71857628]
[1738656907740,0.03,205.55,205.5,45.43715256]
[1738656907948,0.03,205.55,205.54,22.71857628]
[1738656908528,0.03,205.55,205.54,27.58377628]
[1738656910629,1.03,205.55,205.54,22.71857628]
[1738656910842,2.0,205.53,205.51,22.71857628]
[1738656911148,0.03,205.55,205.44,22.71857628]
[1738656911149,1.0,205.47,205.44,22.71857628]
[1738656911342,1.0,205.45,205.44,22.71857628]
[1738656912053,1.0,205.43,205.42,22.71857628]
[1738656912256,2.0,205.43,205.42,22.71857628]
[1738656912667,2.0,205.43,205.41,22.71857628]
[1738656913030,2.0,205.4,205.39,22.71857628]
[1738656913246,22.71857628,205.47,205.35,22.71857628]
[1738656913247,1.0,205.36,205.35,22.71857628]
[1738656913550,1.0,205.36,205.3,30.063]
[1738656913551,2.0,205.34,205.33,22.71857628]
[1738656913853,1.0,205.39,205.33,22.71857628]
[1738656914054,23.1112,205.5,205.36,13.66282853]
[1738656914055,1.0,205.45,205.36,13.66282853]
[1738656914242,10.9457,205.5,205.44,22.71857628]
[1738656914446,1.0,205.49,205.45,0.72977731]
[1738656914748,1.0,205.49,205.48,22.71857628]
[1738656914956,1.0,205.53,205.48,22.71857628]
[1738656915160,1.0,205.53,205.52,22.71857628]
[1738656915319,1.03,205.55,205.52,22.71857628]
[1738656915522,2.03,205.55,205.54,22.71857628]
[1738656916038,0.03,205.55,205.54,22.71857628]
[1738656916252,2.03,205.55,205.54,22.71857628]
[1738656917658,0.03,205.55,205.54,22.71857628]
[1738656917960,2.03,205.55,205.54,22.71857628]
[1738656919161,0.03,205.55,205.54,22.71857628]
[1738656919466,0.03,205.55,205.54,23.44805961]
[1738656921043,0.03,205.58,205.57,20.0]
[1738656921263,0.03,205.58,205.57,43.44792091]
[1738656921465,1.03,205.58,205.57,22.71857628]
[1738656922543,2.03,205.58,205.57,22.71857628]
[1738656922980,0.03,205.58,205.57,22.71857628]
[1738656923677,1.03,205.58,205.57,22.71857628]
[1738656925378,0.03,205.58,205.57,22.71857628]
[1738656925581,1.03,205.58,205.57,22.71857628]
[1738656927081,1.03,205.58,205.55,23.4480607]
[1738656927272,1.0,205.54,205.53,22.71857628]
[1738656927472,1.0,205.54,205.52,22.71857628]
[1738656927672,1.0,205.53,205.52,22.71857628]
[1738656927858,1.0,205.53,205.52,52.71857628]
[1738656928051,2.0,205.57,205.52,28.31386412]
[1738656928258,0.03,205.58,205.56,22.71857628]
[1738656928477,0.03,205.58,205.57,23.4479726]
[1738656928695,1.03,205.58,205.57,23.4479726]
[1738656928862,0.03,205.58,205.57,23.4479726]
[1738656929060,0.03,205.61,205.58,0.25098]
[1738656929285,0.03,205.61,205.6,45.43715256]
[1738656929896,0.03,205.61,205.6,50.30095256]
[1738656930557,0.03,205.61,205.6,27.58237628]
[1738656932222,0.03,205.61,205.6,50.55193256]
[1738656933214,0.03,205.68,205.64,13.66282853]
[1738656933417,0.0001,205.68,205.67,89.09998109]
[1738656933611,0.03,205.72,205.67,89.82886447]
[1738656933811,0.03,205.72,205.69,0.25098]
[1738656934119,0.03,205.76,205.74,20.0]
[1738656934302,0.03,205.76,205.75,0.72876855]
[1738656934709,0.03,205.76,205.75,23.44734483]
[1738656935493,0.03,205.76,205.75,22.71857628]
[1738656935700,2.0,205.75,205.72,22.71857628]
[1738656935894,0.03,205.76,205.7,22.71857628]
[1738656935895,2.0,205.71,205.7,22.71857628]
[1738656936134,1.0,205.69,205.68,22.71857628]
[1738656936303,2.0,205.69,205.68,22.71857628]
[1738656937620,2.0,205.71,205.68,22.71857628]
[1738656937930,2.0,205.73,205.7,22.71857628]
[1738656938101,2.0,205.73,205.72,22.71857628]
[1738656938300,1.0,205.71,205.7,22.71857628]
[1738656938502,2.0,205.71,205.7,22.71857628]
[1738656938716,2.0,205.73,205.7,22.71857628]
[1738656938922,2.0,205.73,205.72,22.71857628]
[1738656939326,2.0,205.73,205.62,4.8633]
[1738656939327,1.0,205.66,205.62,4.8633]
[1738656939534,1.0,205.66,205.65,22.71857628]
[1738656940331,1.0,205.71,205.65,22.71857628]
[1738656940537,0.03,205.71,205.7,45.43715256]
[1738656941335,0.03,205.71,205.7,51.02747708]
[1738656943212,1.0,205.7,205.69,22.71857628]
[1738656943415,1.0,205.69,205.68,22.71857628]
[1738656943631,0.03,205.71,205.68,52.71857628]
[1738656943844,0.03,205.71,205.7,22.71857628]
[1738656944020,0.03,205.71,205.7,23.69852313]
[1738656944421,0.03,205.71,205.7,22.71857628]
[1738656944726,1.0,205.69,205.68,22.71857628]
[1738656944911,2.0,205.64,205.63,22.71857628]
[1738656945114,2.0,205.62,205.61,22.71857628]
[1738656945334,2.0,205.62,205.6,0.063]
[1738656945523,2.0,205.62,205.61,22.71857628]
[1738656945715,2.0,205.62,205.6,0.063]
[1738656945922,29.58197628,205.62,205.6,0.063]
[1738656946237,22.71857628,205.61,205.6,0.063]
[1738656946549,6.8634,205.62,205.6,0.063]
[1738656946550,29.58197628,205.62,205.6,0.063]
[1738656947948,24.71857628,205.62,205.6,0.063]
[1738656949017,2.0,205.62,205.6,22.78157628]
[1738656949215,2.0,205.64,205.61,23.44800877]
[1738656949439,1.0,205.64,205.63,22.71857628]
[1738656949646,1.0,205.66,205.63,22.71857628]
[1738656949854,1.0,205.66,205.65,22.71857628]
[1738656950658,1.0,205.66,205.65,37.56117723]
[1738656950951,1.0,205.68,205.65,37.56117723]
[1738656951154,1.0,205.67,205.64,4.8627]
[1738656951661,1.0,205.69,205.64,5.59186112]
[1738656951825,1.0,205.69,205.68,4.8619]
[1738656953041,1.0,205.68,205.67,36.83193861]
[1738656953727,1.0,205.69,205.68,4.8619]
[1738656954138,1.0,205.7,205.68,4.8619]
[1738656954463,2.0,205.75,205.7,0.25098]
[1738656954627,1.0,205.75,205.74,36.83193861]
[1738656954832,1.0,205.77,205.74,36.83193861]
[1738656955032,2.03,205.79,205.75,37.56065123]
[1738656955337,1.0,205.77,205.75,37.56065123]
[1738656955535,2.03,205.79,205.75,37.56065123]
[1738656955853,1.03,205.79,205.75,56.08367976]
[1738656956082,0.03,205.79,205.78,56.83193861]
[1738656956254,1.03,205.79,205.78,36.83193861]
[1738656956880,0.0001,205.79,205.78,37.08291861]
[1738656957182,0.0001,205.79,205.78,36.83193861]
[1738656957977,0.0001,205.79,205.78,41.69143861]
[1738656958841,0.0001,205.79,205.78,71.69143861]
[1738656959067,0.0001,205.79,205.78,72.42003032]
[1738656959669,0.0001,205.79,205.78,109.25196893]
[1738656959871,0.0001,205.79,205.78,108.52337722]
[1738656960245,0.0001,205.79,205.78,71.69143861]
[1738656960574,0.0001,205.79,205.78,72.42005866]
[1738656960775,0.0001,205.79,205.78,71.69143861]
[1738656960948,0.0001,205.79,205.76,4.8598]
[1738656961142,2.0,205.77,205.75,36.83193861]
[1738656961361,1.0,205.77,205.75,41.69213861]
[1738656961554,2.0,205.77,205.72,0.72889633]
[1738656961784,1.0,205.71,205.64,4.8628]
[1738656961959,1.0,205.69,205.66,30.0]
[1738656962293,1.0,205.7,205.66,13.66282853]
[1738656962462,1.0,205.75,205.69,20.0]
[1738656962790,1.0,205.77,205.74,36.83193861]
[1738656962963,1.0,205.77,205.76,36.83193861]
[1738656963672,2.0,205.77,205.76,36.83193861]
[1738656963975,1.0,205.77,205.76,36.83193861]
[1738656964294,2.0,205.77,205.76,36.83193861]
[1738656964586,2.0,205.77,205.76,41.69193861]
[1738656964993,2.0,205.77,205.76,36.83193861]
[1738656965288,2.0,205.74,205.73,36.83193861]
[1738656965456,2.0,205.74,205.71,36.83193861]
[1738656965661,2.0,205.7,205.69,36.83193861]
[1738656966954,1.0,205.7,205.69,41.69353861]
[1738656967260,1.0,205.72,205.69,78.52547722]
[1738656967469,1.0,205.72,205.71,36.83193861]
[1738656967668,1.0,205.74,205.71,36.83193861]
[1738656967871,1.0,205.74,205.73,36.83193861]
[1738656969164,1.0,205.74,205.73,41.69263861]
[1738656969403,1.0,205.74,205.73,36.83193861]
[1738656969766,1.0,205.74,205.73,41.69263861]
[1738656969968,1.0,205.77,205.73,41.69263861]
[1738656970283,1.0,205.77,205.76,36.83193861]
[1738656970665,2.0,205.75,205.74,36.83193861]
[1738656972394,1.0,205.71,205.7,36.83193861]
[1738656972693,2.0,205.71,205.69,22.66011828]
[1738656972863,2.0,205.73,205.69,22.66011828]
[1738656973066,2.0,205.73,205.72,22.66011828]
[1738656974112,2.0,205.69,205.68,22.66011828]
[1738656974395,2.0,205.67,205.63,4.8629]
[1738656974587,1.0,205.65,205.63,4.8629]
[1738656974792,1.0,205.68,205.64,13.41184853]
[1738656974978,1.0,205.68,205.67,4.8621]
[1738656975175,1.0,205.7,205.67,4.8621]
[1738656976200,1.0,205.69,205.67,4.8621]
[1738656976400,1.0,205.66,205.64,4.8628]
[1738656976573,1.0,205.66,205.65,22.66011828]
[1738656976972,2.0,205.66,205.65,22.66011828]
[1738656978269,2.0,205.66,205.61,30.0]
[1738656978466,1.0,205.66,205.65,22.66011828]
[1738656978883,1.0,205.68,205.65,22.66011828]
[1738656979204,1.0,205.69,205.67,22.66011828]
[1738656979601,1.0,205.68,205.67,22.66011828]
[1738656980707,1.0,205.64,205.63,22.66011828]
[1738656981010,2.0,205.61,205.6,22.72311828]
[1738656981204,2.0,205.61,205.6,0.063]
[1738656982894,24.66011828,205.61,205.6,0.063]
[1738656983303,1.0,205.52,205.49,0.063]
[1738656983604,0.25098,205.6,205.49,0.063]
[1738656983605,2.0,205.5,205.49,0.063]
[1738656984007,24.66011828,205.5,205.49,0.063]
[1738656984478,2.0,205.5,205.49,0.063]
[1738656984684,24.66011828,205.5,205.49,0.063]
[1738656984883,25.66011828,205.5,205.49,0.063]
[1738656985201,24.66011828,205.5,205.49,0.063]
[1738656985707,25.66011828,205.5,205.49,0.063]
[1738656986509,39.32294681,205.5,205.49,0.063]
[1738656986813,2.0,205.4,205.39,22.72311828]
[1738656987313,2.0,205.4,205.39,0.063]
[1738656989015,24.66011828,205.4,205.39,0.063]
[1738656989397,35.04231828,205.4,205.39,0.063]
[1738656991311,12.3822,205.4,205.39,0.063]
[1738656991618,35.04231828,205.4,205.39,0.063]
[1738656991824,2.0,205.4,205.39,0.063]
[1738656992422,1.0,205.4,205.39,0.063]
[1738656992590,2.0,205.4,205.39,0.063]
[1738656992918,2.0,205.4,205.39,22.72311828]
[1738656993219,1.0,205.4,205.39,22.72311828]
[1738656993599,1.0,205.4,205.39,45.38323656]
[1738656993936,2.0,205.4,205.39,22.72311828]
[1738656995054,2.0,205.4,205.39,0.063]
[1738656997234,2.0,205.4,205.39,22.72311828]
[1738656999239,8.11948,205.4,205.39,0.063]
[1738656999439,2.25098,205.35,205.34,0.063]
[1738656999612,38.32294681,205.35,205.34,0.063]
[1738657000529,2.25098,205.31,205.3,0.063]
[1738657000735,39.32294681,205.31,205.3,0.063]
[1738657001043,49.14694681,205.31,205.3,0.063]
[1738657001213,50.14694681,205.31,205.3,0.063]
[1738657001412,55.01754681,205.31,205.3,0.063]
[1738657001949,2.0,205.21,205.18,0.063]
[1738657002130,2.0,205.19,205.18,0.063]
[1738657002743,2.0,205.19,205.18,37.08293067]
[1738657004654,2.0,205.19,205.18,0.063]
[1738657004946,63.7939592,205.19,205.18,0.063]
[1738657005445,12.1112,205.19,205.18,0.063]
[1738657006354,28.32532853,205.19,205.18,0.0001]
[1738657006554,3.25098,205.14,205.13,0.063]
[1738657006763,73.6827592,205.14,205.13,0.0001]
[1738657007556,78.5574592,205.14,205.13,0.0001]
[1738657007765,78.03986134,205.1,205.09,0.0001]
[1738657007927,91.70268987,205.1,205.09,0.0001]
[1738657008128,20.0,205.07,204.97,37.01993067]
[1738657008334,1.0,204.93,204.92,37.01993067]
[1738657008763,2.0,204.93,204.9,37.01993067]
[1738657009058,2.0,204.91,204.9,37.01993067]
[1738657009449,1.0,204.93,204.91,4.8801]
[1738657009755,1.0,204.97,204.93,4.8797]
[1738657010075,1.0,204.99,204.96,37.01993067]
[1738657010285,1.0,205.01,204.98,20.0]
[1738657010564,1.0,204.94,204.93,4.8797]
[1738657010760,1.0,204.96,204.95,20.0]
[1738657010944,1.0,204.96,204.95,57.01993067]
[1738657011337,1.0,204.94,204.93,41.89963067]
[1738657011533,2.0,204.94,204.93,37.01993067]
[1738657011731,2.0,204.92,204.91,37.01993067]
[1738657013057,1.0,204.92,204.91,37.01993067]
[1738657013238,2.0,204.92,204.91,37.01993067]
[1738657013757,1.0,204.95,204.91,41.90003067]
[1738657013962,2.0,204.95,204.94,37.01993067]
[1738657014464,1.0,204.95,204.94,37.01993067]
[1738657014671,1.0,204.97,204.94,37.01993067]
[1738657014861,1.0,204.97,204.96,37.01993067]
[1738657015064,1.0,205.01,204.97,13.41184853]
[1738657015261,1.0,205.03,205.0,94.03986134]
[1738657015565,1.0,205.05,205.02,37.01993067]
[1738657015769,1.0,205.07,205.04,37.01993067]
[1738657015967,1.0,205.09,205.06,37.01993067]
[1738657016266,1.0,205.11,205.08,37.01993067]
[1738657016568,1.0,205.13,205.1,37.01993067]
[1738657016963,1.0,205.11,205.1,37.01993067]
[1738657017671,1.0,205.11,205.1,41.89553067]
[1738657017873,1.0,205.09,205.06,37.01993067]
[1738657018076,1.0,205.05,205.04,37.01993067]
[1738657018649,1.0,205.07,205.05,4.8768]
[1738657018973,1.0,205.07,205.06,37.01993067]
[1738657019350,1.25098,205.17,205.06,37.01993067]
[1738657019351,1.0,205.1,205.06,37.01993067]
[1738657019672,1.0,205.07,205.06,37.01993067]
[1738657019858,1.0,205.08,205.06,37.01993067]
[1738657020167,1.0,204.99,204.98,37.01993067]
[1738657020345,1.0,204.97,204.96,37.01993067]
[1738657020547,1.0,204.99,204.96,37.01993067]
[1738657020854,1.0,205.03,204.99,13.41184853]
[1738657021049,1.0,205.03,205.02,37.01993067]
[1738657021641,1.0,205.05,205.02,37.01993067]
[1738657021842,1.0,205.01,205.0,37.01993067]
[1738657022080,1.0,204.99,204.98,37.01993067]
[1738657022370,1.0,204.97,204.93,37.01993067]
[1738657022670,1.0,204.97,204.95,37.01993067]
[1738657022875,1.0,204.92,204.91,37.01993067]
[1738657023066,1.0,204.9,204.87,41.90103067]
[1738657023248,1.0,204.88,204.87,37.01993067]
[1738657023560,1.0,204.86,204.85,41.96443067]
[1738657023763,1.0,204.86,204.85,0.063]
[1738657023969,1.0,204.86,204.85,37.08293067]
[1738657024557,1.0,204.86,204.85,0.063]
[1738657025358,1.0,204.86,204.85,37.08293067]
[1738657026571,1.0,204.86,204.85,0.063]
[1738657026971,3.25098,204.86,204.85,0.063]
[1738657027151,16.66282853,204.86,204.85,0.063]
[1738657028456,21.0,204.82,204.81,0.063]
[1738657028668,1.0,204.82,204.81,0.063]
[1738657028982,22.0,204.79,204.78,0.063]
[1738657029148,59.01993067,204.79,204.78,0.063]
[1738657029350,85.9606592,204.79,204.78,0.063]
[1738657029555,3.0,204.76,204.75,0.063]
[1738657029752,40.01993067,204.76,204.75,0.063]
[1738657029968,38.01993067,204.76,204.75,0.063]
[1738657030188,43.90363067,204.76,204.75,0.063]
[1738657030381,43.90363067,204.76,204.75,0.0001]
[1738657030382,44.90363067,204.76,204.75,0.0001]
[1738657030897,58.5664592,204.76,204.75,0.0001]
[1738657031594,1.0,204.76,204.75,0.0001]
[1738657032677,1.0,204.76,204.75,37.02003067]
[1738657032880,1.0,204.79,204.75,50.4318792]
[1738657033189,1.0,204.76,204.75,0.0001]
[1738657033587,1.0,204.8,204.78,20.0]
[1738657033770,1.0,204.8,204.79,50.4317792]
[1738657034172,1.0,204.83,204.79,55.3147792]
[1738657034376,1.0,204.8,204.79,55.3147792]
[1738657034562,1.0,204.83,204.79,55.3147792]
[1738657035063,1.0,204.8,204.79,41.90293067]
[1738657035257,1.0,204.8,204.75,37.02003067]
[1738657035507,1.0,204.76,204.75,0.0001]
[1738657039296,1.0,204.76,204.75,50.4318792]
[1738657039477,1.0,204.76,204.75,0.0001]
[1738657039676,38.27091067,204.76,204.75,0.0001]
[1738657040577,38.14542067,204.76,204.75,0.0001]
[1738657040981,1.0,204.76,204.75,0.0001]
[1738657042486,1.0,204.76,204.75,50.4318792]
[1738657042977,2.0,204.9,204.82,37.01993067]
[1738657042978,41.90053067,204.9,204.82,37.01993067]
[1738657043184,37.01993067,204.9,204.82,37.01993067]
[1738657044002,48.04673067,204.92,204.85,13.41184853]
[1738657044201,37.01993067,204.94,204.86,37.01993067]
[1738657045087,37.01993067,204.92,204.84,55.3133792]
[1738657045283,37.01993067,204.88,204.78,37.01993067]
[1738657045478,37.01993067,204.86,204.78,37.01993067]
[1738657045802,37.01993067,204.86,204.77,13.41184853]
[1738657046005,37.01993067,204.88,204.8,37.01993067]
[1738657046209,1.0,204.91,204.78,37.01993067]
[1738657046210,37.01993067,204.86,204.78,37.01993067]
[1738657046409,37.01993067,204.88,204.8,37.01993067]
[1738657046703,0.12549,204.87,204.8,37.01993067]
[1738657047198,37.01993067,204.86,204.79,4.8829]
[1738657047403,37.20842067,204.9,204.8,50.4317792]
[1738657047619,0.063,204.9,204.84,37.01993067]
[1738657047795,37.01993067,204.86,204.78,37.01993067]
[1738657048112,37.01993067,204.82,204.75,0.0001]
[1738657048278,37.01993067,204.8,204.75,0.0001]
[1738657048479,37.01993067,204.78,204.75,0.0001]
[1738657049002,0.12549,204.79,204.75,0.0001]
[1738657049303,0.12549,204.77,204.75,0.0001]
[1738657049472,37.27091067,204.76,204.75,0.0001]
[1738657050312,57.01993067,204.8,204.75,0.0001]
[1738657050476,47.77033067,204.85,204.75,37.02003067]
[1738657050673,0.25098,204.84,204.77,37.01993067]
[1738657051203,10.7504,204.85,204.78,4.8832]
[1738657051438,37.01993067,204.89,204.81,37.01993067]
[1738657051599,0.063,204.9,204.81,37.01993067]
[1738657051795,0.31398,204.9,204.83,37.01993067]
[1738657052006,0.063,204.9,204.83,37.01993067]
[1738657052396,0.18849,204.9,204.83,37.01993067]
[1738657052924,37.01993067,204.87,204.79,50.4317792]
[1738657053430,37.20842067,204.9,204.81,37.01993067]
[1738657054015,0.063,204.9,204.85,37.01993067]
[1738657054603,0.063,204.9,204.87,37.01993067]
[1738657054929,0.063,204.9,204.89,37.01993067]
[1738657055233,0.063,204.9,204.89,55.3123792]
[1738657055998,0.063,204.9,204.89,41.90053067]
[1738657056533,0.063,204.9,204.89,55.3123792]
[1738657057401,0.0001,204.9,204.89,92.58328987]
[1738657057604,0.063,205.03,204.93,20.25098]
[1738657057830,0.063,205.03,205.0,37.01993067]
[1738657058032,0.063,205.03,205.02,37.01993067]
[1738657058205,0.063,205.03,205.0,37.01993067]
[1738657058624,0.063,205.03,205.02,37.01993067]
[1738657058810,0.063,205.03,205.02,50.4317792]
[1738657059435,0.063,205.03,205.02,55.3092792]
[1738657059740,0.063,205.11,205.06,20.0]
[1738657059907,0.063,205.11,205.1,37.01993067]
[1738657060106,0.063,205.11,205.06,37.01993067]
[1738657060304,0.063,205.11,205.1,37.01993067]
[1738657060829,0.063,205.11,205.06,37.01993067]
[1738657061034,37.01993067,205.08,205.0,41.89773067]
[1738657061410,0.12549,205.07,205.0,37.01993067]
[1738657061808,37.01993067,205.04,204.96,41.89883067]
[1738657062025,37.01993067,205.02,204.94,37.01993067]
[1738657062227,37.01993067,205.04,204.96,37.01993067]
[1738657062617,37.01993067,205.0,204.92,37.01993067]
[1738657063315,37.01993067,204.98,204.9,37.01993067]
[1738657063514,0.12549,204.97,204.91,30.0]
[1738657063709,37.01993067,204.96,204.88,37.01993067]
[1738657063922,37.01993067,204.96,204.88,41.90073067]
[1738657064125,0.12549,204.97,204.88,41.90073067]
[1738657064324,37.01993067,204.96,204.88,41.90073067]
[1738657064618,0.12549,204.95,204.88,37.01993067]
[1738657065235,37.01993067,205.01,204.92,37.01993067]
[1738657065541,0.12549,204.98,204.9,41.90033067]
[1738657065837,0.12549,204.96,204.9,37.01993067]
[1738657066014,0.12549,204.96,204.88,41.90063067]
[1738657066339,37.01993067,204.93,204.86,37.01993067]
[1738657066550,37.01993067,204.91,204.82,37.01993067]
[1738657066847,37.01993067,204.91,204.82,41.90213067]
[1738657067229,37.01993067,204.87,204.8,37.01993067]
[1738657067433,37.01993067,204.87,204.76,57.97]
[1738657067434,37.01993067,204.85,204.78,4.883]
[1738657067630,37.01993067,204.85,204.76,37.04993067]
[1738657067835,6.00669,204.87,204.78,37.01993067]
[1738657067836,0.12549,204.86,204.78,37.01993067]
[1738657068031,0.12549,204.86,204.8,37.01993067]
[1738657068227,0.12549,204.86,204.78,37.01993067]
[1738657068544,10.5299,204.88,204.82,37.01993067]
[1738657068723,0.12549,204.9,204.84,37.01993067]
[1738657069149,0.12549,204.9,204.82,37.01993067]
[1738657069322,0.12549,204.88,204.8,37.01993067]
[1738657069653,37.01993067,204.87,204.8,37.01993067]
[1738657070453,0.12549,204.86,204.8,37.01993067]
[1738657070617,37.01993067,204.85,204.76,55.3453792]
[1738657070817,0.12549,204.84,204.76,41.93353067]
[1738657071136,0.12549,204.84,204.8,0.03]
[1738657071341,5.13298,204.84,204.8,0.03]
[1738657071528,37.01993067,204.83,204.8,0.03]
[1738657073044,37.01993067,204.85,204.8,0.03]
[1738657073341,0.25098,204.86,204.8,0.03]
[1738657073536,0.25098,204.84,204.8,0.03]
[1738657073920,37.01993067,204.83,204.8,0.03]
[1738657074123,0.12549,204.82,204.8,0.03]
[1738657074531,57.14542067,204.81,204.8,0.03]
[1738657074732,68.03771067,204.81,204.8,0.03]
[1738657075150,0.25098,204.77,204.76,0.03]
[1738657075449,37.27091067,204.77,204.76,0.03]
[1738657075654,38.27091067,204.77,204.76,0.03]
[1738657077053,37.27091067,204.77,204.76,0.03]
[1738657077262,42.15441067,204.77,204.76,0.03]
[1738657077558,37.01993067,204.84,204.76,37.04993067]
[1738657077730,37.01993067,204.86,204.78,37.01993067]
[1738657077923,37.01993067,204.86,204.79,37.01993067]
[1738657078128,37.01993067,204.84,204.77,37.01993067]
[1738657078651,4.24,204.87,204.79,37.01993067]
[1738657078652,37.01993067,204.86,204.79,37.01993067]
[1738657078835,37.01993067,204.86,204.77,37.01993067]
[1738657079154,37.01993067,204.84,204.77,37.01993067]
[1738657079837,37.01993067,204.84,204.76,4.9136]
[1738657080035,37.01993067,204.84,204.77,37.01993067]
[1738657080428,37.01993067,204.84,204.76,0.03]
[1738657080429,0.12549,204.77,204.76,0.03]
[1738657080628,37.01993067,204.78,204.76,0.03]
[1738657080848,37.01993067,204.82,204.76,0.03]
[1738657081043,38.01993067,204.84,204.76,4.9137]
[1738657081352,0.25098,204.77,204.76,0.03]
[1738657081963,5.13448,204.77,204.76,0.03]
[1738657082734,37.01993067,204.8,204.76,0.03]
[1738657083072,37.01993067,204.84,204.77,37.01993067]
[1738657083238,41.90173067,204.84,204.77,37.01993067]
[1738657083439,0.25098,204.81,204.76,0.03]
[1738657083745,37.01993067,204.82,204.76,0.03]
[1738657084270,0.12549,204.79,204.76,0.03]
[1738657085192,37.01993067,204.8,204.76,0.03]
[1738657085538,37.14542067,204.82,204.76,0.03]
[1738657085749,37.01993067,204.84,204.77,37.01993067]
[1738657086069,37.01993067,204.8,204.76,0.03]
[1738657086274,0.25098,204.77,204.76,0.03]
[1738657086748,0.12549,204.77,204.76,0.03]
[1738657086953,37.01993067,204.78,204.76,0.03]
[1738657087734,37.01993067,204.82,204.76,0.03]
[1738657087942,37.01993067,204.84,204.76,0.03]
[1738657088169,0.25098,204.79,204.76,0.03]
[1738657088348,37.01993067,204.78,204.76,0.03]
[1738657088862,0.25098,204.77,204.76,0.03]
[1738657090287,5.00899,204.77,204.76,0.03]
[1738657090575,41.90223067,204.82,204.76,0.03]